lending/lending_fUSD_20250501
["ID","MTS","AMOUNT","RATE_DAILY","PERIOD"]
[359581967,1746143449114,-450.0,0.00035616,11]
[359581968,1746143449125,-629.93,0.00035616,11]
[359581969,1746143449135,-577.34273769,0.00035616,11]
[359581970,1746143449144,-450.0,0.00035616,11]
[359581971,1746143449154,-151.0,0.00035616,7]
[359581972,1746143449164,-450.0,0.00035616,11]
[359581973,1746143449174,-470.0,0.00035616,11]
[359581974,1746143449183,-921.09,0.00035616,11]
[359581975,1746143449193,-450.0,0.00035616,11]
[359581976,1746143449202,-517.15182725,0.00035616,11]
[359581977,1746143449211,-450.0,0.00035616,11]
[359581978,1746143449221,-450.0,0.00035616,11]
[359581979,1746143449230,-1019.41,0.00035616,11]
[359581980,1746143449239,-450.0,0.00035616,11]
[359581981,1746143449249,-696.87,0.00035616,11]
[359581982,1746143449259,-450.0,0.00035616,11]
[359581983,1746143449269,-970.78,0.00035616,11]
[359581984,1746143449278,-533.53,0.00035616,11]
[359581985,1746143449288,-2318.28,0.00035616,11]
[359581986,1746143449298,-470.0,0.00035616,11]
[359581987,1746143449307,-450.0,0.00035616,11]
[359581988,1746143449316,-450.0,0.00035616,11]
[359581989,1746143449326,-450.0,0.00035616,11]
[359581990,1746143449335,-450.0,0.00035616,11]
[359581991,1746143449346,-848.81,0.00035616,11]
[359581992,1746143449357,-1017.95,0.00035616,11]
[359581993,1746143449366,-450.0,0.00035616,11]
[359581994,1746143449376,-450.0,0.00035616,11]
[359581995,1746143449386,-450.0,0.00035616,11]
[359581996,1746143449395,-470.0,0.00035616,11]
[359581997,1746143449405,-500.0,0.00035616,11]
[359581998,1746143449415,-151.0,0.00035616,7]
[359581999,1746143449425,-500.0,0.00035616,11]
[359582000,1746143449435,-500.0,0.00035616,11]
[359582001,1746143449446,-434.47627175,0.00035616,11]
[359582002,1746143449455,-539.52263152,0.00035616,11]
[359582003,1746143449465,-470.0,0.00035616,11]
[359582004,1746143449474,-450.0,0.00035616,11]
[359582005,1746143449483,-1017.89,0.00035616,11]
[359582006,1746143449493,-151.0,0.00035616,7]
[359582007,1746143449502,-578.93769598,0.00035616,11]
[359582008,1746143449512,-644.23,0.00035616,11]
[359582009,1746143449522,-450.0,0.00035616,11]
[359582010,1746143449531,-1175.04,0.00035616,11]
[359582011,1746143449541,-2054.77,0.00035616,11]
[359582012,1746143449550,-470.0,0.00035616,11]
[359582013,1746143449559,-151.0,0.00035616,7]
[359582014,1746143449568,-450.0,0.00035616,11]
[359582015,1746143449577,-450.0,0.00035616,11]
[359582016,1746143449586,-934.55,0.00035616,11]
[359582017,1746143449595,-470.0,0.00035616,11]
[359582018,1746143449605,-450.0,0.00035616,11]
[359582019,1746143449615,-832.52,0.00035616,11]
[359582020,1746143449624,-470.0,0.00035616,11]
[359582021,1746143449633,-539.9,0.00035616,11]
[359582022,1746143449641,-450.0,0.00035616,11]
[359582023,1746143449651,-472.73,0.00035616,11]
[359582024,1746143449661,-485.97,0.00035616,11]
[359582025,1746143449670,-470.0,0.00035616,11]
[359582026,1746143449679,-1411.61,0.00035616,11]
[359582027,1746143449688,-450.0,0.00035616,11]
[359582028,1746143449698,-450.0,0.00035616,11]
[359582029,1746143449708,-450.0,0.00035616,11]
[359582030,1746143449717,-450.0,0.00035616,11]
[359582031,1746143449727,-450.0,0.00035616,11]
[359582032,1746143449736,-450.0,0.00035616,11]
[359582033,1746143449746,-450.0,0.00035616,11]
[359582034,1746143449756,-450.0,0.00035616,11]
[359582035,1746143449766,-450.0,0.00035616,11]
[359582036,1746143449775,-470.0,0.00035616,11]
[359582037,1746143449785,-450.0,0.00035616,11]
[359582038,1746143449795,-470.0,0.00035616,11]
[359582039,1746143449804,-785.78,0.00035616,11]
[359582040,1746143449814,-450.0,0.00035616,11]
[359582041,1746143449823,-450.0,0.00035616,11]
[359582042,1746143449833,-450.0,0.00035616,11]
[359582043,1746143449843,-470.0,0.00035616,11]
[359582044,1746143449853,-1011.23,0.00035616,11]
[359582045,1746143449862,-500.0,0.00035616,11]
[359582046,1746143449872,-470.0,0.00035616,11]
[359582047,1746143449882,-470.0,0.00035616,11]
[359582048,1746143449891,-616.47,0.00035616,11]
[359582049,1746143449901,-450.0,0.00035616,7]
[359582050,1746143449914,-276.09261851,0.00035616,11]
[359582051,1746143449925,-450.0,0.00035616,11]
[359582052,1746143449934,-2499.3,0.00035616,11]
[359582053,1746143449944,-308.06556597,0.00035616,11]
[359582054,1746143449955,-1410.47,0.00035616,11]
[359582055,1746143449966,-532.8,0.00035616,11]
[359582056,1746143449976,-470.0,0.00035616,11]
[359582057,1746143449987,-539.72512155,0.00035616,11]
[359582058,1746143450001,-530.56,0.00035616,11]
[359582059,1746143450012,-755.14,0.00035616,11]
[359582060,1746143450023,-450.0,0.00035616,11]
[359582061,1746143450033,-170.90300038,0.00035616,11]
[359582062,1746143450042,-470.0,0.00035616,11]
[359582063,1746143450052,-419.89136213,0.00035616,11]
[359582064,1746143450062,-450.0,0.00035616,11]
[359582065,1746143450072,-450.0,0.00035616,11]
[359582066,1746143450081,-450.0,0.00035616,11]
[359582067,1746143450093,-470.0,0.00035616,11]
[359582068,1746143450103,-496.63,0.00035616,11]
[359582069,1746143450112,-470.0,0.00035616,11]
[359582070,1746143450122,-223.10854448,0.00035616,11]
[359582071,1746143450131,-450.0,0.00035616,11]
[359582072,1746143450141,-566.88,0.00035616,11]
[359582073,1746143450150,-450.0,0.00035616,11]
[359582074,1746143450160,-450.0,0.00035616,11]
[359582075,1746143450170,-824.89,0.00035616,11]
[359582076,1746143450180,-401.86906816,0.00035616,11]
[359582077,1746143450190,-524.58,0.00035616,11]
[359582078,1746143450199,-450.0,0.00035616,11]
[359582079,1746143450209,-450.0,0.00035616,11]
[359582080,1746143450219,-495.72,0.00035616,11]
[359582081,1746143450229,-450.0,0.00035616,11]
[359582082,1746143450239,-450.0,0.00035616,11]
[359582083,1746143450249,-151.0,0.00035616,7]
[359582084,1746143450258,-151.0,0.00035616,7]
[359582085,1746143450268,-692.14,0.00035616,11]
[359582086,1746143450278,-832.45,0.00035616,11]
[359582087,1746143450288,-450.0,0.00035616,11]
[359582088,1746143450298,-450.0,0.00035616,11]
[359582089,1746143450308,-450.0,0.00035616,11]
[359582090,1746143450318,-152.698789,0.00035616,7]
[359582091,1746143450328,-596.731986,0.00035616,7]
[359582092,1746143450338,-160.41285126,0.00035616,11]
[359582093,1746143450348,-450.0,0.00035616,11]
[359582094,1746143450359,-152.698789,0.00035616,7]
[359582095,1746143450369,-1072.9,0.00035616,11]
[359582096,1746143450380,-519.19758941,0.00035616,11]
[359582097,1746143450390,-450.0,0.00035616,11]
[359582098,1746143450400,-541.63772701,0.00035616,11]
[359582099,1746143450410,-596.731986,0.00035616,7]
[359582100,1746143450420,-450.0,0.00035616,11]
[359582101,1746143450430,-4267.42,0.00035616,11]
[359582102,1746143450441,-843.62,0.00035616,11]
[359582103,1746143450452,-697.22,0.00035616,11]
[359582104,1746143450462,-450.0,0.00035616,11]
[359582105,1746143450471,-1058.66,0.00035616,11]
[359582106,1746143450482,-450.0,0.00035616,11]
[359582107,1746143450492,-470.0,0.00035616,11]
[359582108,1746143450502,-406.42275344,0.00035616,11]
[359582109,1746143450512,-470.0,0.00035616,11]
[359582110,1746143450522,-1823.2,0.00035616,11]
[359582111,1746143450532,-450.0,0.00035616,11]
[359582112,1746143450542,-450.0,0.00035616,11]
[359582113,1746143450553,-450.0,0.00035616,11]
[359582114,1746143450565,-1245.35,0.00035616,11]
[359582115,1746143450577,-470.0,0.00035616,11]
[359582116,1746143450587,-470.0,0.00035616,11]
[359582117,1746143450598,-470.0,0.00035616,11]
[359582118,1746143450608,-470.0,0.00035616,11]
[359582119,1746143450618,-450.0,0.00035616,11]
[359582120,1746143450628,-450.0,0.00035616,11]
[359582121,1746143450637,-642.01,0.00035616,11]
[359582122,1746143450647,-860.69,0.00035616,11]
[359582123,1746143450659,-450.0,0.00035616,11]
[359582124,1746143450670,-470.0,0.00035616,11]
[359582125,1746143450680,-450.0,0.00035616,11]
[359582126,1746143450690,-500.0,0.00035616,11]
[359582127,1746143450701,-618.18332005,0.00035616,11]
[359582128,1746143450712,-356.17651407,0.00035616,2]
[359582129,1746143450722,-408.54688901,0.00035616,11]
[359582130,1746143450732,-882.36,0.00035616,11]
[359582131,1746143450742,-470.0,0.00035616,11]
[359582132,1746143450752,-509.39,0.00035616,11]
[359582133,1746143450762,-450.0,0.00035616,11]
[359582134,1746143450771,-450.0,0.00035616,11]
[359582135,1746143450782,-450.0,0.00035616,11]
[359582136,1746143450791,-470.0,0.00035616,11]
[359582137,1746143450802,-470.0,0.00035616,11]
[359582138,1746143450812,-151.0,0.00035616,7]
[359582139,1746143450822,-450.0,0.00035616,11]
[359582140,1746143450831,-450.0,0.00035616,11]
[359582141,1746143450841,-450.0,0.00035616,11]
[359582142,1746143450851,-470.0,0.00035616,11]
[359582143,1746143450861,-470.0,0.00035616,11]
[359582144,1746143450871,-803.53,0.00035616,11]
[359582145,1746143450880,-450.0,0.00035616,11]
[359582146,1746143450891,-450.0,0.00035616,11]
[359582147,1746143450901,-450.0,0.00035616,11]
[359582148,1746143450916,-450.0,0.00035616,11]
[359582149,1746143450926,-459.98,0.00035616,11]
[359582150,1746143450936,-450.0,0.00035616,11]
[359582151,1746143450947,-815.53,0.00035616,11]
[359582152,1746143450957,-470.0,0.00035616,11]
[359582153,1746143450967,-530.69799756,0.00035616,11]
[359582154,1746143450977,-974.13,0.00035616,11]
[359582155,1746143450987,-1779.34,0.00035616,11]
[359582156,1746143450997,-1162.27,0.00035616,11]
[359582157,1746143451007,-363.34795656,0.00035616,11]
[359582158,1746143451017,-1410.65,0.00035616,11]
[359582159,1746143451027,-500.0,0.00035616,13]
[359582160,1746143451037,-500.0,0.00035616,13]
[359582161,1746143451047,-500.0,0.00035616,13]
[359582162,1746143451056,-450.0,0.00035616,11]
[359582163,1746143451066,-500.0,0.00035616,13]
[359582164,1746143451076,-500.0,0.00035616,13]
[359582165,1746143451086,-450.0,0.00035616,11]
[359582166,1746143451095,-500.0,0.00035616,13]
[359582167,1746143451106,-500.0,0.00035616,13]
[359582168,1746143451116,-500.0,0.00035616,13]
[359582169,1746143451126,-450.0,0.00035616,11]
[359582170,1746143451136,-450.0,0.00035616,11]
[359582171,1746143451146,-450.0,0.00035616,11]
[359582172,1746143451155,-450.0,0.00035616,11]
[359582173,1746143451165,-450.0,0.00035616,11]
[359582174,1746143451175,-549.22,0.00035616,11]
[359582175,1746143451184,-472.77,0.00035616,11]
[359582176,1746143451194,-151.0,0.00035616,7]
[359582177,1746143451204,-613.1,0.00035616,11]
[359582178,1746143451214,-450.0,0.00035616,11]
[359582179,1746143451224,-318.85,0.00035616,2]
[359582180,1746143451233,-1339.22,0.00035616,11]
[359582181,1746143451243,-151.0,0.00035616,7]
[359582182,1746143451254,-450.0,0.00035616,11]
[359582183,1746143451265,-450.0,0.00035616,11]
[359582184,1746143451274,-470.0,0.00035616,11]
[359582185,1746143451284,-1091.6,0.00035616,11]
[359582186,1746143451294,-450.0,0.00035616,11]
[359582187,1746143451304,-494.31,0.00035616,11]
[359582188,1746143451314,-644.23,0.00035616,11]
[359582189,1746143451324,-450.0,0.00035616,11]
[359582190,1746143451335,-450.0,0.00035616,11]
[359582191,1746143451345,-450.0,0.00035616,11]
[359582192,1746143451356,-9585.54,0.00035616,11]
[359582193,1746143451367,-470.0,0.00035616,11]
[359582194,1746143451377,-470.0,0.00035616,11]
[359582195,1746143451387,-450.0,0.00035616,11]
[359582196,1746143451398,-450.0,0.00035616,11]
[359582197,1746143451408,-624.88,0.00035616,11]
[359582198,1746143451418,-1273.48,0.00035616,11]
[359582199,1746143451428,-470.0,0.00035616,11]
[359582200,1746143451438,-450.0,0.00035616,11]
[359582201,1746143451449,-450.0,0.00035616,11]
[359582202,1746143451459,-450.0,0.00035616,11]
[359582203,1746143451469,-450.0,0.00035616,11]
[359582204,1746143451479,-470.0,0.00035616,11]
[359582205,1746143451489,-450.0,0.00035616,11]
[359582206,1746143451499,-1057.57,0.00035616,11]
[359582207,1746143451509,-498.33,0.00035616,11]
[359582208,1746143451519,-470.0,0.00035616,11]
[359582209,1746143451529,-1356.12,0.00035616,11]
[359582210,1746143451539,-450.0,0.00035616,11]
[359582211,1746143451549,-470.0,0.00035616,11]
[359582212,1746143451559,-487.41,0.00035616,11]
[359582213,1746143451569,-450.0,0.00035616,11]
[359582214,1746143451579,-548.56842744,0.00035616,11]
[359582215,1746143451589,-275.25771566,0.00035616,11]
[359582216,1746143451599,-450.0,0.00035616,11]
[359582217,1746143451610,-450.0,0.00035616,11]
[359582218,1746143451620,-471.05,0.00035616,11]
[359582219,1746143451632,-506.22,0.00035616,11]
[359582220,1746143451642,-9732.88,0.00035616,11]
[359582221,1746143451652,-504.19,0.00035616,11]
[359582222,1746143451662,-768.85,0.00035616,11]
[359582223,1746143451672,-450.0,0.00035616,11]
[359582224,1746143451686,-976.36,0.00035616,11]
[359582225,1746143451695,-501.68,0.00035616,11]
[359582226,1746143451706,-450.0,0.00035616,11]
[359582227,1746143451716,-450.0,0.00035616,11]
[359582228,1746143451726,-450.0,0.00035616,11]
[359582229,1746143451736,-1811.96,0.00035616,11]
[359582230,1746143451746,-450.0,0.00035616,11]
[359582231,1746143451755,-506.81321354,0.00035616,11]
[359582232,1746143451766,-5058.13,0.00035616,11]
[359582233,1746143451775,-450.0,0.00035616,11]
[359582234,1746143451786,-254.11,0.00035616,11]
[359582235,1746143451798,-1555.27,0.00035616,11]
[359582236,1746143451807,-450.0,0.00035616,11]
[359582237,1746143451818,-450.0,0.00035616,11]
[359582238,1746143451828,-450.0,0.00035616,11]
[359582239,1746143451837,-434.0,0.00035616,5]
[359582240,1746143451846,-450.0,0.00035616,11]
[359582241,1746143451856,-450.0,0.00035616,11]
[359582242,1746143451865,-3009.35,0.00035616,11]
[359582243,1746143451875,-1306.96,0.00035616,11]
[359582244,1746143451885,-1642.1,0.00035616,8]
[359582245,1746143451894,-508.88,0.00035616,11]
[359582246,1746143451904,-450.0,0.00035616,11]
[359582247,1746143451916,-450.0,0.00035616,11]
[359582248,1746143451926,-848.14,0.00035616,11]
[359582249,1746143451936,-450.0,0.00035616,11]
[359582250,1746143451947,-258.13106604,0.00035616,2]
[359582251,1746143451957,-1143.86,0.00035616,11]
[359582252,1746143451967,-450.0,0.00035616,11]
[359582253,1746143452180,-450.0,0.00035616,11]
[359582254,1746143452190,-910.349218,0.00035616,7]
[359582255,1746143452199,-150.0,0.00035616,5]
[359582256,1746143452210,-450.0,0.00035616,11]
[359582257,1746143452220,-1179.23,0.00035616,11]
[359582258,1746143452229,-679.708077,0.00035616,7]
[359582259,1746143452239,-500.0,0.00035616,5]
[359582260,1746143452249,-515.73,0.00035616,11]
[359582261,1746143452258,-257.204037,0.00035616,7]
[359582262,1746143452268,-450.0,0.00035616,11]
[359582263,1746143452278,-639.82,0.00035616,11]
[359582264,1746143452287,-686.46,0.00035616,11]
[359582265,1746143452297,-450.0,0.00035616,11]
[359582266,1746143452306,-151.0,0.00035616,7]
[359582267,1746143452316,-450.0,0.00035616,11]
[359582268,1746143452325,-910.349218,0.00035616,7]
[359582269,1746143452335,-150.0,0.00035616,2]
[359582270,1746143452344,-679.708077,0.00035616,7]
[359582271,1746143452354,-450.0,0.00035616,11]
[359582272,1746143452363,-500.0,0.00035616,5]
[359582273,1746143452373,-25614.17,0.00035616,11]
[359582274,1746143452383,-657.82,0.00035616,11]
[359582275,1746143452392,-805.53,0.00035616,11]
[359582276,1746143452402,-470.0,0.00035616,11]
[359582277,1746143452411,-450.0,0.00035616,11]
[359582278,1746143452420,-802.7,0.00035616,11]
[359582279,1746143452429,-838.86,0.00035616,11]
[359582280,1746143452439,-450.0,0.00035616,11]
[359582281,1746143452448,-728.03,0.00035616,11]
[359582282,1746143452458,-450.0,0.00035616,11]
[359582283,1746143452467,-277.47483898,0.00035616,11]
[359582284,1746143452476,-450.0,0.00035616,11]
[359582285,1746143452485,-450.0,0.00035616,11]
[359582286,1746143452495,-450.0,0.00035616,11]
[359582287,1746143452504,-450.0,0.00035616,11]
[359582288,1746143452513,-869.27,0.00035616,11]
[359582289,1746143452522,-450.0,0.00035616,11]
[359582290,1746143452532,-586.64,0.00035616,11]
[359582291,1746143452541,-500.0,0.00035616,11]
[359582292,1746143452551,-880.13,0.00035616,11]
[359582293,1746143452560,-500.0,0.00035616,11]
[359582294,1746143452570,-500.0,0.00035616,11]
[359582295,1746143452580,-450.0,0.00035616,11]
[359582296,1746143452590,-500.0,0.00035616,11]
[359582297,1746143452599,-500.0,0.00035616,11]
[359582298,1746143452609,-500.0,0.00035616,11]
[359582299,1746143452619,-500.0,0.00035616,11]
[359582300,1746143452629,-500.0,0.00035616,11]
[359582301,1746143452638,-514.40965256,0.00035616,11]
[359582302,1746143452648,-500.0,0.00035616,11]
[359582303,1746143452658,-450.0,0.00035616,11]
[359582304,1746143452667,-500.0,0.00035616,11]
[359582305,1746143452677,-500.0,0.00035616,11]
[359582306,1746143452686,-500.0,0.00035616,11]
[359582307,1746143452697,-450.0,0.00035616,11]
[359582308,1746143452707,-500.0,0.00035616,11]
[359582309,1746143452716,-506.81346082,0.00035616,11]
[359582310,1746143452726,-151.0,0.00035616,7]
[359582311,1746143452735,-450.0,0.00035616,11]
[359582312,1746143452744,-450.0,0.00035616,11]
[359582313,1746143452753,-873.59,0.00035616,11]
[359582314,1746143452763,-880.87,0.00035616,120]
[359582315,1746143452772,-450.0,0.00035616,11]
[359582316,1746143452781,-843.35,0.00035616,11]
[359582317,1746143452790,-976.47,0.00035616,11]
[359582318,1746143452800,-450.0,0.00035616,11]
[359582319,1746143452810,-151.0,0.00035616,7]
[359582320,1746143452819,-450.0,0.00035616,11]
[359582321,1746143452829,-1587.58,0.00035616,11]
[359582322,1746143452838,-364.89214831,0.00035616,11]
[359582323,1746143452847,-497.47,0.00035616,11]
[359582324,1746143452857,-1460.54,0.00035616,11]
[359582325,1746143452867,-1005.3,0.00035616,11]
[359582326,1746143452876,-990.87,0.00035616,11]
[359582327,1746143452885,-596.08,0.00035616,11]
[359582328,1746143452895,-478.3,0.00035616,11]
[359582329,1746143452904,-13122.98,0.00035616,11]
[359582330,1746143452914,-1079.87,0.00035616,11]
[359582331,1746143452926,-450.0,0.00035616,11]
[359582332,1746143452935,-1018.77,0.00035616,11]
[359582333,1746143452944,-895.24,0.00035616,11]
[359582334,1746143452954,-495.73,0.00035616,11]
[359582335,1746143452964,-497.47,0.00035616,11]
[359582336,1746143452973,-704.68,0.00035616,11]
[359582337,1746143452983,-450.0,0.00035616,11]
[359582338,1746143452992,-313.35008691,0.00035616,11]
[359582339,1746143453001,-450.0,0.00035616,11]
[359582340,1746143453010,-2336.95,0.00035616,11]
[359582341,1746143453020,-450.0,0.00035616,11]
[359582342,1746143453030,-347.94739802,0.00035616,11]
[359582343,1746143453039,-450.0,0.00035616,11]
[359582344,1746143453048,-450.0,0.00035616,11]
[359582345,1746143453058,-450.0,0.00035616,11]
[359582346,1746143453067,-1019.15,0.00035616,11]
[359582347,1746143453076,-450.0,0.00035616,7]
[359582348,1746143453085,-450.0,0.00035616,11]
[359582349,1746143453095,-540.4,0.00035616,11]
[359582350,1746143453104,-151.0,0.00035616,7]
[359582351,1746143453114,-520.27958928,0.00035616,11]
[359582352,1746143453123,-909.63,0.00035616,11]
[359582353,1746143453133,-151.0,0.00035616,7]
[359582354,1746143453142,-450.0,0.00035616,11]
[359582355,1746143453152,-450.0,0.00035616,11]
[359582356,1746143453161,-5318.74,0.00035616,11]
[359582357,1746143453171,-450.0,0.00035616,11]
[359582358,1746143453181,-1764.22,0.00035616,11]
[359582359,1746143453190,-450.0,0.00035616,11]
[359582360,1746143453200,-504.6,0.00035616,11]
[359582361,1746143453211,-747.99,0.00035616,11]
[359582362,1746143453220,-565.32,0.00035616,11]
[359582363,1746143453230,-450.0,0.00035616,11]
[359582364,1746143453240,-847.09,0.00035616,11]
[359582365,1746143453249,-301.07813,0.00035616,7]
[359582366,1746143453258,-450.0,0.00035616,11]
[359582367,1746143453268,-203.486427,0.00035616,7]
[359582368,1746143453277,-917.86,0.00035616,11]
[359582369,1746143453287,-1000.0,0.00035616,60]
[359582370,1746143453296,-579.31,0.00035616,11]
[359582371,1746143453305,-450.0,0.00035616,11]
[359582372,1746143453315,-7325.74,0.00035616,11]
[359582373,1746143453324,-1228.66,0.00035616,11]
[359582374,1746143453333,-1141.03,0.00035616,11]
[359582375,1746143453343,-450.0,0.00035616,11]
[359582376,1746143453354,-450.0,0.00035616,11]
[359582377,1746143453364,-664.04,0.00035616,11]
[359582378,1746143453373,-492.39,0.00035616,11]
[359582379,1746143453383,-450.0,0.00035616,11]
[359582380,1746143453392,-450.0,0.00035616,11]
[359582381,1746143453401,-3005.14,0.00035616,11]
[359582382,1746143453411,-450.0,0.00035616,11]
[359582383,1746143453420,-450.0,0.00035616,11]
[359582384,1746143453429,-450.0,0.00035616,11]
[359582385,1746143453439,-450.0,0.00035616,11]
[359582386,1746143453448,-985.57,0.00035616,11]
[359582387,1746143453458,-450.0,0.00035616,11]
[359582388,1746143453467,-705.22,0.00035616,11]
[359582389,1746143453477,-1085.3,0.00035616,11]
[359582390,1746143453486,-502.429753,0.00035616,7]
[359582391,1746143453496,-570.96274898,0.00035616,11]
[359582392,1746143453505,-804.89,0.00035616,11]
[359582393,1746143453515,-450.0,0.00035616,11]
[359582394,1746143453524,-1336.59,0.00035616,11]
[359582395,1746143453534,-151.0,0.00035616,7]
[359582396,1746143453544,-450.0,0.00035616,11]
[359582397,1746143453554,-450.0,0.00035616,11]
[359582398,1746143453564,-502.429753,0.00035616,7]
[359582399,1746143453574,-483.83,0.00035616,11]
[359582400,1746143453584,-450.0,0.00035616,11]
[359582401,1746143453595,-450.0,0.00035616,11]
[359582402,1746143453604,-450.0,0.00035616,11]
[359582403,1746143453614,-450.0,0.00035616,11]
[359582404,1746143453623,-679.98,0.00035616,11]
[359582405,1746143453633,-645.1,0.00035616,11]
[359582406,1746143453643,-151.0,0.00035616,7]
[359582407,1746143453652,-151.0,0.00035616,7]
[359582408,1746143453662,-450.0,0.00035616,11]
[359582409,1746143453671,-450.0,0.00035616,11]
[359582410,1746143453681,-602.11,0.00035616,11]
[359582411,1746143453691,-450.0,0.00035616,11]
[359582412,1746143453701,-450.0,0.00035616,3]
[359582413,1746143453711,-1183.77,0.00035616,11]
[359582414,1746143453720,-450.0,0.00035616,11]
[359582415,1746143453730,-450.0,0.00035616,11]
[359582416,1746143453739,-450.0,0.00035616,11]
[359582417,1746143453749,-450.0,0.00035616,11]
[359582418,1746143453759,-450.0,0.00035616,11]
[359582419,1746143453768,-479.1,0.00035616,11]
[359582420,1746143453778,-754.98,0.00035616,11]
[359582421,1746143453787,-1022.36,0.00035616,11]
[359582422,1746143453797,-470.0,0.00035616,11]
[359582423,1746143453807,-450.0,0.00035616,11]
[359582424,1746143453817,-450.0,0.00035616,11]
[359582425,1746143453827,-826.81,0.00035616,11]
[359582426,1746143453836,-450.0,0.00035616,11]
[359582427,1746143453845,-771.26,0.00035616,11]
[359582428,1746143453854,-1721.97,0.00035616,11]
[359582429,1746143453864,-305.17212908,0.00035616,11]
[359582430,1746143453872,-1098.77,0.00035616,11]
[359582431,1746143453882,-450.0,0.00035616,11]
[359582432,1746143453892,-1111.23,0.00035616,11]
[359582433,1746143453901,-450.0,0.00035616,11]
[359582434,1746143453910,-463.2,0.00035616,11]
[359582435,1746143453924,-537.94352884,0.00035616,11]
[359582436,1746143453934,-300.0,0.00035616,11]
[359582437,1746143453943,-485.42,0.00035616,11]
[359582438,1746143453952,-1317.32,0.00035616,11]
[359582439,1746143453963,-564.19,0.00035616,11]
[359582440,1746143453972,-450.0,0.00035616,11]
[359582441,1746143453981,-450.0,0.00035616,11]
[359582442,1746143453991,-450.0,0.00035616,11]
[359582443,1746143454000,-450.0,0.00035616,11]
[359582444,1746143454009,-1398.71,0.00035616,11]
[359582445,1746143454018,-834.12,0.00035616,11]
[359582446,1746143454027,-450.0,0.00035616,11]
[359582447,1746143454036,-1439.64,0.00035616,11]
[359582448,1746143454046,-697.19,0.00035616,11]
[359582449,1746143454055,-151.0,0.00035616,7]
[359582450,1746143454064,-450.0,0.00035616,11]
[359582451,1746143454073,-887.91,0.00035616,11]
[359582452,1746143454083,-450.0,0.00035616,11]
[359582453,1746143454093,-1312.66,0.00035616,11]
[359582454,1746143454103,-450.0,0.00035616,11]
[359582455,1746143454114,-846.3,0.00035616,11]
[359582456,1746143454123,-595.37,0.00035616,11]
[359582457,1746143454135,-450.0,0.00035616,11]
[359582458,1746143454144,-847.91,0.00035616,11]
[359582459,1746143454153,-450.0,0.00035616,11]
[359582460,1746143454163,-561.41,0.00035616,11]
[359582461,1746143454172,-695.91,0.00035616,11]
[359582462,1746143454181,-459.07,0.00035616,11]
[359582463,1746143454191,-450.0,0.00035616,11]
[359582464,1746143454201,-1157.12,0.00035616,11]
[359582465,1746143454211,-450.0,0.00035616,11]
[359582466,1746143454220,-450.0,0.00035616,11]